fUSD/lending_fUSD_20250113
["ID","MTS","AMOUNT","RATE_DAILY","PERIOD"]
[348814461,1736790679084,-500.0,0.00015201,2]
[348814462,1736790679100,-945.57,0.00015201,2]
[348814463,1736790679115,-2308.5,0.00015201,2]
[348814464,1736790679129,-896.29,0.00015201,2]
[348814465,1736790679145,-3302.26,0.00015201,2]
[348814466,1736790679161,-1383.5,0.00015201,2]
[348814467,1736790679177,-1442.3,0.00015201,2]
[348814468,1736790679191,-1927.12,0.00015201,2]
[348814469,1736790679202,-754.44,0.00015201,2]
[348814470,1736790679213,-510.31,0.00015201,2]
[348814471,1736790679223,-774.65,0.00015201,2]
[348814472,1736790679232,-779.56,0.00015201,2]
[348814473,1736790679243,-589.82,0.00015201,2]
[348814474,1736790679253,-1283.59,0.00015201,2]
[348814475,1736790679264,-572.87,0.00015201,2]
[348814476,1736790679274,-366.986236,0.00015201,2]
[348814477,1736790679283,-1771.6,0.00015201,2]
[348814478,1736790679292,-1791.6,0.00015201,2]
[348814479,1736790679302,-2062.22,0.00015201,2]
[348814480,1736790679311,-1491.1,0.00015201,2]
[348814481,1736790679321,-838.56,0.00015201,2]
[348814482,1736790679330,-778.31,0.00015201,2]
[348814483,1736790679340,-583.56,0.00015201,2]
[348814484,1736790679350,-451.277377,0.00015201,2]
[348814485,1736790679361,-1703.85,0.00015201,2]
[348814486,1736790679372,-609.17,0.00015201,2]
[348814487,1736790679383,-2107.76,0.00015201,2]
[348814488,1736790679392,-150.328638,0.00015201,2]
[348814489,1736790679402,-829.34,0.00015201,2]
[348814490,1736790679412,-500.0,0.00015201,2]
[348814491,1736790679422,-612.5,0.00015201,2]
[348814492,1736790679432,-880.8,0.00015201,2]
[348814493,1736790679443,-161.287929,0.00015201,2]
[348814494,1736790679454,-513.74,0.00015201,2]
[348814495,1736790679465,-858.44,0.00015201,2]
[348814496,1736790679476,-934.89,0.00015201,2]
[348814497,1736790679487,-410.52159343,0.00015201,2]
[348814498,1736790679498,-500.0,0.00015203,2]
[348814499,1736790679508,-500.0,0.00015203,2]
[348814500,1736790679813,-414.81126,0.00015203,2]
[348814501,1736790679843,-414.81126,0.00015203,2]
[348814502,1736790679862,-735.87,0.00015203,2]
[348814503,1736790679873,-2437.41,0.00015203,2]
[348814504,1736790679883,-1171.68,0.00015203,2]
[348814505,1736790679892,-808.21,0.00015203,2]
[348814506,1736790679902,-514.19,0.00015203,2]
[348814507,1736790679912,-758.91,0.00015203,2]
[348814508,1736790679922,-708.49,0.00015203,2]
[348814509,1736790679932,-1224.55524042,0.00015235,2]
[348814510,1736790679942,-151.0,0.00015235,2]
[348814511,1736790679952,-151.0,0.00015235,2]
[348814512,1736790679962,-151.0,0.00015235,2]
[348814513,1736790679973,-151.0,0.00015235,2]
[348814514,1736790679982,-151.0,0.00015235,2]
[348814515,1736790679992,-1500.0,0.00015248,2]
[348814516,1736790680001,-1500.0,0.00015248,2]
[348814517,1736790680011,-676.26,0.00015267,2]
[348814518,1736790680022,-1517.64,0.000153,2]
[348814519,1736790680031,-166.796717,0.000153,2]
[348814520,1736790680041,-166.796717,0.000153,2]
[348814521,1736790680051,-151.0,0.000153,2]
[348814522,1736790680061,-2256.21,0.00015342,2]
[348814523,1736790680071,-999.0,0.00015342,6]
[348814524,1736790680081,-151.0,0.00015368,2]
[348814525,1736790680091,-1000.0,0.0001537,2]
[348814526,1736790680101,-15934.11462272,0.000154,2]
[348814527,1736790680110,-484.58093188,0.000154,2]
[348814528,1736790680120,-151.795266,0.000154,2]
[348814529,1736790680128,-151.795266,0.000154,2]
[348814530,1736790680138,-157.950119,0.000154,2]
[348814531,1736790680148,-157.950119,0.000154,2]
[348814532,1736790680157,-500.0,0.00015461,2]
[348814533,1736790680166,-773.16,0.00015474,2]
[348814534,1736790680177,-1601.98,0.00015474,2]
[348814535,1736790680187,-2833.89,0.00015474,2]
[348814536,1736790680197,-629.38,0.00015474,2]
[348814537,1736790680206,-1459.66,0.00015474,2]
[348814538,1736790680215,-785.35,0.00015474,2]
[348814539,1736790680228,-1359.03,0.00015474,2]
[348814540,1736790680237,-1434.31,0.00015474,2]
[348814541,1736790680247,-151.0,0.00015475,2]
[348814542,1736790680256,-151.0,0.00015475,2]
[348814543,1736790680267,-786.47,0.00015475,2]
[348814544,1736790680277,-581.5,0.00015475,2]
[348814545,1736790680287,-324.30317528,0.00015475,2]
[348814546,1736790680296,-553.57047661,0.00015475,2]
[348814547,1736790680306,-538.76,0.00015475,2]
[348814548,1736790680315,-527.23,0.00015475,2]
[348814549,1736790680324,-500.0,0.00015475,2]
[348814550,1736790680334,-500.0,0.00015475,2]
[348814551,1736790680343,-500.0,0.00015475,2]
[348814552,1736790680353,-280.02025841,0.00015475,2]
[348814553,1736790680363,-986.41,0.00015475,2]
[348814554,1736790680372,-779.56,0.00015475,2]
[348814555,1736790680382,-1266.48,0.00015475,2]
[348814556,1736790680392,-558.25,0.00015475,2]
[348814557,1736790680401,-173.08859292,0.00015475,2]
[348814558,1736790680411,-1206.57,0.00015475,2]
[348814559,1736790680421,-551.99,0.00015475,2]
[348814560,1736790680430,-500.0,0.00015475,2]
[348814561,1736790680439,-945.57,0.00015475,2]
[348814562,1736790680449,-2308.5,0.00015475,2]
[348814563,1736790680458,-896.29,0.00015475,2]
[348814564,1736790680467,-3302.26,0.00015475,2]
[348814565,1736790680480,-1383.5,0.00015475,2]
[348814566,1736790680489,-1442.3,0.00015475,2]
[348814567,1736790680499,-1927.12,0.00015475,2]
[348814568,1736790680509,-754.44,0.00015475,2]
[348814569,1736790680519,-510.31,0.00015475,2]
[348814570,1736790680528,-774.65,0.00015475,2]
[348814571,1736790680538,-779.56,0.00015475,2]
[348814572,1736790680547,-589.82,0.00015475,2]
[348814573,1736790680556,-1283.59,0.00015475,2]
[348814574,1736790680565,-572.87,0.00015475,2]
[348814575,1736790680575,-366.986236,0.00015475,2]
[348814576,1736790680584,-1771.6,0.00015475,2]
[348814577,1736790680594,-1791.6,0.00015475,2]
[348814578,1736790680603,-2062.22,0.00015475,2]
[348814579,1736790680614,-1491.1,0.00015475,2]
[348814580,1736790680626,-838.56,0.00015475,2]
[348814581,1736790680636,-778.31,0.00015475,2]
[348814582,1736790680645,-583.56,0.00015475,2]
[348814583,1736790680655,-451.277377,0.00015475,2]
[348814584,1736790680666,-1703.85,0.00015475,2]
[348814585,1736790680675,-609.17,0.00015475,2]
[348814586,1736790680685,-2107.76,0.00015475,2]
[348814587,1736790680694,-829.34,0.00015475,2]
[348814588,1736790680706,-500.0,0.00015475,2]
[348814589,1736790680716,-612.5,0.00015475,2]
[348814590,1736790680729,-880.8,0.00015475,2]
[348814591,1736790680738,-513.74,0.00015475,2]
[348814592,1736790680748,-858.44,0.00015475,2]
[348814593,1736790680757,-934.89,0.00015475,2]
[348814594,1736790680767,-500.0,0.00015477,2]
[348814595,1736790680776,-163.21771518,0.00015477,2]
[348814596,1736790680786,-174.267797,0.00015477,2]
[348814597,1736790680795,-174.267797,0.00015477,2]
[348814598,1736790680805,-218.0,0.00015477,2]
[348814599,1736790680815,-735.87,0.00015477,2]
[348814600,1736790680824,-2437.41,0.00015477,2]
[348814601,1736790680834,-1171.68,0.00015477,2]
[348814602,1736790680843,-808.21,0.00015477,2]
[348814603,1736790680853,-514.19,0.00015477,2]
[348814604,1736790680862,-758.91,0.00015477,2]
[348814605,1736790680873,-708.49,0.00015477,2]
[348814606,1736790680882,-1019.3213655,0.00015516,2]
[348814607,1736790680891,-236.42114999,0.00015521,2]
[348814608,1736790680900,-1000.0,0.00015521,2]
[348814609,1736790680909,-7277.58566208,0.00015532,2]
[348814610,1736790680919,-2256.21,0.00015616,2]
[348814611,1736790680928,-192.90400355,0.00015623,2]
[348814612,1736790680938,-676.25,0.00015633,2]
[348814613,1736790680948,-184.95465694,0.00015649,2]
[348814614,1736790680958,-3294.46126515,0.00015651,2]
[348814615,1736790680967,-157.994781,0.00015716,2]
[348814616,1736790680981,-2016.0,0.00015723,2]
[348814617,1736790680990,-1268.0,0.00015723,2]
[348814618,1736790681000,-635.0,0.00015723,2]
[348814619,1736790681009,-150.0,0.00015723,2]
[348814620,1736790681018,-566.0,0.00015723,2]
[348814621,1736790681028,-1861.0,0.00015723,2]
[348814622,1736790681038,-820.0,0.00015723,2]
[348814623,1736790681048,-907.0,0.00015723,2]
[348814624,1736790681057,-1259.0,0.00015723,2]
[348814625,1736790681068,-2944.0,0.00015723,2]
[348814626,1736790681077,-3979.0,0.00015723,2]
[348814627,1736790681086,-537.0,0.00015723,2]
[348814628,1736790681096,-3897.0,0.00015723,2]
[348814629,1736790681105,-150.0,0.00015723,2]
[348814630,1736790681114,-5982.848,0.00015723,2]
[348814631,1736790681124,-500.0,0.00015735,2]
[348814632,1736790681133,-773.16,0.00015748,2]
[348814633,1736790681142,-1601.98,0.00015748,2]
[348814634,1736790681152,-2833.89,0.00015748,2]
[348814635,1736790681161,-629.38,0.00015748,2]
[348814636,1736790681170,-1459.66,0.00015748,2]
[348814637,1736790681180,-785.35,0.00015748,2]
[348814638,1736790681189,-1359.03,0.00015748,2]
[348814639,1736790681198,-1434.31,0.00015748,2]
[348814640,1736790681208,-786.47,0.00015749,2]
[348814641,1736790681218,-581.5,0.00015749,2]
[348814642,1736790681233,-538.76,0.00015749,2]
[348814643,1736790681242,-527.23,0.00015749,2]
[348814644,1736790681252,-423.67488964,0.00015749,2]
[348814645,1736790681262,-500.0,0.00015749,2]
[348814646,1736790681272,-585.48779392,0.00015749,2]
[348814647,1736790681282,-986.41,0.00015749,2]
[348814648,1736790681292,-779.56,0.00015749,2]
[348814649,1736790681301,-1266.48,0.00015749,2]
[348814650,1736790681311,-558.25,0.00015749,2]
[348814651,1736790681321,-1206.57,0.00015749,2]
[348814652,1736790681331,-551.99,0.00015749,2]
[348814653,1736790681340,-500.0,0.00015749,2]
[348814654,1736790681349,-945.57,0.00015749,2]
[348814655,1736790681359,-2308.5,0.00015749,2]
[348814656,1736790681369,-896.29,0.00015749,2]
[348814657,1736790681380,-3302.26,0.00015749,2]
[348814658,1736790681391,-1383.5,0.00015749,2]
[348814659,1736790681401,-1442.3,0.00015749,2]
[348814660,1736790681411,-1927.12,0.00015749,2]
[348814661,1736790681421,-510.31,0.00015749,2]
[348814662,1736790681431,-754.44,0.00015749,2]
[348814663,1736790681440,-774.65,0.00015749,2]
[348814664,1736790681450,-779.56,0.00015749,2]
[348814665,1736790681460,-589.82,0.00015749,2]
[348814666,1736790681471,-1283.59,0.00015749,2]
[348814667,1736790681484,-572.87,0.00015749,2]
[348814668,1736790681493,-366.986236,0.00015749,2]
[348814669,1736790681503,-1791.6,0.00015749,2]
[348814670,1736790681512,-1771.6,0.00015749,2]
[348814671,1736790681521,-2062.22,0.00015749,2]
[348814672,1736790681531,-1491.1,0.00015749,2]
[348814673,1736790681541,-838.56,0.00015749,2]
[348814674,1736790681550,-778.31,0.00015749,2]
[348814675,1736790681560,-583.56,0.00015749,2]
[348814676,1736790681569,-451.277377,0.00015749,2]
[348814677,1736790681578,-1703.85,0.00015749,2]
[348814678,1736790681587,-609.17,0.00015749,2]
[348814679,1736790681599,-2107.76,0.00015749,2]
[348814680,1736790681609,-150.328638,0.00015749,2]
[348814681,1736790681618,-829.34,0.00015749,2]
[348814682,1736790681628,-500.0,0.00015749,2]
[348814683,1736790681641,-612.5,0.00015749,2]
[348814684,1736790681650,-880.8,0.00015749,2]
[348814685,1736790681659,-513.74,0.00015749,2]
[348814686,1736790681670,-858.44,0.00015749,2]
[348814687,1736790681679,-934.89,0.00015749,2]
[348814688,1736790681688,-173.54447946,0.00015751,2]
[348814689,1736790681698,-167.723371,0.00015751,2]
[348814690,1736790681708,-167.723371,0.00015751,2]
[348814691,1736790681718,-403.782299,0.00015751,2]
[348814692,1736790681727,-403.782299,0.00015751,2]
[348814693,1736790681739,-151.0,0.00015751,2]
[348814694,1736790681749,-890.637031,0.00015751,2]
[348814695,1736790681758,-890.637031,0.00015751,2]
[348814696,1736790681769,-735.87,0.00015751,2]
[348814697,1736790681778,-2437.41,0.00015751,2]
[348814698,1736790681788,-1171.68,0.00015751,2]
[348814699,1736790681798,-808.21,0.00015751,2]
[348814700,1736790681807,-514.19,0.00015751,2]
[348814701,1736790681816,-758.91,0.00015751,2]
[348814702,1736790681827,-708.49,0.00015751,2]
[348814703,1736790681836,-2256.21,0.0001589,2]
[348814704,1736790681847,-839.130736,0.0001589,2]
[348814705,1736790681856,-188.13576102,0.0001592,2]
[348814706,1736790681866,-1500.0,0.00015942,2]
[348814707,1736790681876,-1500.0,0.00015942,2]
[348814708,1736790681886,-157.994781,0.00015978,2]
[348814709,1736790681896,-758.57946802,0.00016,2]
[348814710,1736790681906,-676.26,0.00016,2]
[348814711,1736790681918,-1800.0,0.00016,17]
[348814712,1736790681929,-250.0,0.00016,10]
[348814713,1736790681940,-1000.0,0.00016,6]
[348814714,1736790681949,-2079.0,0.00016,2]
[348814715,1736790681959,-157.0,0.00016,2]
[348814716,1736790681968,-280.0,0.00016,2]
[348814717,1736790681978,-374.0,0.00016,2]
[348814718,1736790681988,-374.0,0.00016,2]
[348814719,1736790681998,-468.0,0.00016,2]
[348814720,1736790682007,-2000.0,0.00016,2]
[348814721,1736790682016,-392.244102,0.00016008,2]
[348814722,1736790682026,-392.244102,0.00016008,2]
[348814723,1736790682038,-621.38217847,0.00016009,2]
[348814724,1736790682048,-2000.0,0.0001601,2]
[348814725,1736790682057,-3684.945372,0.0001602,2]
[348814726,1736790682067,-773.16,0.00016022,2]
[348814727,1736790682076,-1601.98,0.00016022,2]
[348814728,1736790682086,-2833.89,0.00016022,2]
[348814729,1736790682096,-629.38,0.00016022,2]
[348814730,1736790682106,-1459.66,0.00016022,2]
[348814731,1736790682116,-785.35,0.00016022,2]
[348814732,1736790682125,-1434.31,0.00016022,2]
[348814733,1736790682135,-786.47,0.00016023,2]
[348814734,1736790682146,-581.5,0.00016023,2]
[348814735,1736790682157,-538.76,0.00016023,2]
[348814736,1736790682167,-527.23,0.00016023,2]
[348814737,1736790682177,-250.70150195,0.00016023,2]
[348814738,1736790682187,-986.41,0.00016023,2]
[348814739,1736790682197,-779.56,0.00016023,2]
[348814740,1736790682208,-1266.48,0.00016023,2]
[348814741,1736790682218,-558.25,0.00016023,2]
[348814742,1736790682228,-1206.57,0.00016023,2]
[348814743,1736790682238,-551.99,0.00016023,2]
[348814744,1736790682247,-410.65829271,0.00016023,2]
[348814745,1736790682257,-945.57,0.00016023,2]
[348814746,1736790682266,-2308.5,0.00016023,2]
[348814747,1736790682276,-896.29,0.00016023,2]
[348814748,1736790682287,-3302.26,0.00016023,2]
[348814749,1736790682298,-1383.5,0.00016023,2]
[348814750,1736790682308,-1442.3,0.00016023,2]
[348814751,1736790682320,-1927.12,0.00016023,2]
[348814752,1736790682329,-510.31,0.00016023,2]
[348814753,1736790682340,-754.44,0.00016023,2]
[348814754,1736790682351,-774.65,0.00016023,2]
[348814755,1736790682361,-779.56,0.00016023,2]
[348814756,1736790682370,-589.82,0.00016023,2]
[348814757,1736790682379,-1283.59,0.00016023,2]
[348814758,1736790682389,-572.87,0.00016023,2]
[348814759,1736790682398,-366.986236,0.00016023,2]
[348814760,1736790682408,-1791.6,0.00016023,2]
[348814761,1736790682417,-1771.6,0.00016023,2]
[348814762,1736790682427,-2062.22,0.00016023,2]
[348814763,1736790682437,-1491.1,0.00016023,2]
[348814764,1736790682447,-838.56,0.00016023,2]
[348814765,1736790682457,-778.31,0.00016023,2]
[348814766,1736790682466,-583.56,0.00016023,2]
[348814767,1736790682478,-451.277377,0.00016023,2]
[348814768,1736790682488,-1703.85,0.00016023,2]
[348814769,1736790682497,-609.17,0.00016023,2]
[348814770,1736790682507,-2107.76,0.00016023,2]
[348814771,1736790682516,-829.34,0.00016023,2]
[348814772,1736790682526,-218.19312762,0.00016023,2]
[348814773,1736790682535,-612.5,0.00016023,2]
[348814774,1736790682545,-880.8,0.00016023,2]
[348814775,1736790682554,-513.74,0.00016023,2]
[348814776,1736790682564,-858.44,0.00016023,2]
[348814777,1736790682574,-934.89,0.00016023,2]
[348814778,1736790682584,-735.87,0.00016025,2]
[348814779,1736790682594,-2437.41,0.00016025,2]
[348814780,1736790682603,-1171.68,0.00016025,2]
[348814781,1736790682613,-808.21,0.00016025,2]
[348814782,1736790682623,-514.19,0.00016025,2]
[348814783,1736790682638,-758.91,0.00016025,2]
[348814784,1736790682647,-708.49,0.00016025,2]
[348814785,1736790682657,-150.0,0.00016088,2]
[348814786,1736790682669,-271.190185,0.000161,2]
[348814787,1736790682678,-151.0,0.000161,2]
[348814788,1736790682687,-271.190185,0.000161,2]
[348814789,1736790682697,-151.0,0.000161,2]
[348814790,1736790682712,-151.0,0.000161,2]
[348814791,1736790682723,-9999.99,0.00016116,2]
[348814792,1736790682734,-2256.21,0.00016164,2]
[348814793,1736790682744,-150.0,0.00016195,2]
[348814794,1736790682754,-157.994781,0.0001624,2]
[348814795,1736790682763,-995.33921644,0.00016246,2]
[348814796,1736790682773,-150.0,0.00016246,2]
[348814797,1736790682783,-527.31496556,0.00016296,2]
[348814798,1736790682794,-986.60529047,0.00016296,2]
[348814799,1736790682804,-1206.70631306,0.00016296,2]
[348814800,1736790682813,-552.03731252,0.00016296,2]
[348814801,1736790682823,-945.6718604,0.00016296,2]
[348814802,1736790682833,-773.16,0.00016296,2]
[348814803,1736790682842,-3302.263844,0.00016296,2]
[348814804,1736790682852,-1442.31021819,0.00016296,2]
[348814805,1736790682861,-1601.98,0.00016296,2]
[348814806,1736790682871,-510.45956632,0.00016296,2]
[348814807,1736790682880,-774.68214281,0.00016296,2]
[348814808,1736790682890,-2833.89,0.00016296,2]
[348814809,1736790682899,-779.62158715,0.00016296,2]
[348814810,1736790682909,-629.38,0.00016296,2]
[348814811,1736790682919,-572.88649184,0.00016296,2]
[348814812,1736790682928,-366.986236,0.00016296,2]
[348814813,1736790682938,-1791.73599686,0.00016296,2]
[348814814,1736790682948,-2062.26852952,0.00016296,2]
[348814815,1736790682958,-838.65993454,0.00016296,2]
[348814816,1736790682968,-778.39177858,0.00016296,2]
[348814817,1736790682977,-583.79382726,0.00016296,2]
[348814818,1736790682987,-451.277377,0.00016296,2]
[348814819,1736790682996,-1703.98126041,0.00016296,2]
[348814820,1736790683006,-2107.82064137,0.00016296,2]
[348814821,1736790683015,-1459.66,0.00016296,2]
[348814822,1736790683025,-785.35,0.00016296,2]
[348814823,1736790683035,-829.34013775,0.00016296,2]
[348814824,1736790683197,-880.9024032,0.00016296,2]
[348814825,1736790683208,-513.92021489,0.00016296,2]
[348814826,1736790683218,-858.48673093,0.00016296,2]
[348814827,1736790683227,-1434.31,0.00016296,2]
[348814828,1736790683239,-786.56780043,0.00016297,2]
[348814829,1736790683249,-581.5028302,0.00016297,2]
[348814830,1736790683260,-538.84206408,0.00016297,2]
[348814831,1736790683271,-779.66025962,0.00016297,2]
[348814832,1736790683284,-1266.574463,0.00016297,2]
[348814833,1736790683295,-558.30795878,0.00016297,2]
[348814834,1736790683305,-2308.61004479,0.00016297,2]
[348814835,1736790683315,-896.31200628,0.00016297,2]
[348814836,1736790683325,-1383.55374082,0.00016297,2]
[348814837,1736790683335,-1927.17831217,0.00016297,2]
[348814838,1736790683345,-754.54800503,0.00016297,2]
[348814839,1736790683355,-590.00034773,0.00016297,2]
[348814840,1736790683365,-1283.76732804,0.00016297,2]
[348814841,1736790683375,-1771.70680023,0.00016297,2]
[348814842,1736790683386,-1491.14558697,0.00016297,2]
[348814843,1736790683395,-609.33353793,0.00016297,2]
[348814844,1736790683407,-612.71275659,0.00016297,2]
[348814845,1736790683416,-934.92030599,0.00016297,2]
[348814846,1736790683427,-151.0,0.00016299,2]
[348814847,1736790683438,-500.0,0.00016299,2]
[348814848,1736790683449,-266.694664,0.00016299,2]
[348814849,1736790683458,-500.0,0.00016299,2]
[348814850,1736790683469,-266.694664,0.00016299,2]
[348814851,1736790683480,-257.714356,0.00016299,2]
[348814852,1736790683490,-257.714356,0.00016299,2]
[348814853,1736790683501,-151.0,0.00016299,2]
[348814854,1736790683511,-151.0,0.00016299,2]
[348814855,1736790683521,-189.163443,0.00016299,2]
[348814856,1736790683531,-189.163443,0.00016299,2]
[348814857,1736790683541,-735.94425451,0.00016299,2]
[348814858,1736790683551,-2437.509248,0.00016299,2]
[348814859,1736790683562,-1171.91218596,0.00016299,2]
[348814860,1736790683572,-808.330008,0.00016299,2]
[348814861,1736790683583,-514.19090856,0.00016299,2]
[348814862,1736790683593,-759.03952241,0.00016299,2]
[348814863,1736790683604,-708.52651715,0.00016299,2]
[348814864,1736790683613,-150.0,0.00016322,2]
[348814865,1736790683627,-200.0,0.0001634,2]
[348814866,1736790683637,-1000.0,0.0001637,2]
[348814867,1736790683647,-226.0,0.0001638,2]
[348814868,1736790683658,-296.0,0.0001638,2]
[348814869,1736790683670,-169.79,0.00016437,2]
[348814870,1736790683680,-2256.21,0.00016438,2]
[348814871,1736790683690,-1025.32,0.00016438,2]
[348814872,1736790683700,-1025.32,0.00016438,2]
[348814873,1736790683712,-1025.32,0.00016438,2]
[348814874,1736790683723,-1025.32,0.00016438,2]
[348814875,1736790683735,-1025.32,0.00016438,2]
[348814876,1736790683745,-1025.32,0.00016438,2]
[348814877,1736790683754,-1025.32,0.00016438,2]
[348814878,1736790683764,-1025.32,0.00016438,2]
[348814879,1736790683774,-1025.32,0.00016438,2]
[348814880,1736790683785,-1025.32,0.00016438,2]
[348814881,1736790683795,-1025.32,0.00016438,2]
[348814882,1736790683808,-1025.32,0.00016438,2]
[348814883,1736790683818,-1025.32,0.00016438,2]
[348814884,1736790683829,-1025.32,0.00016438,2]
[348814885,1736790683840,-1025.32,0.00016438,2]
[348814886,1736790683850,-1025.32,0.00016438,2]
[348814887,1736790683861,-1025.32,0.00016438,2]
[348814888,1736790683871,-1025.32,0.00016438,2]
[348814889,1736790683880,-1025.32,0.00016438,2]
[348814890,1736790683891,-1025.32,0.00016438,2]
[348814891,1736790683901,-1025.32,0.00016438,2]
[348814892,1736790683912,-1025.32,0.00016438,2]
[348814893,1736790683922,-1025.32,0.00016438,2]
[348814894,1736790683933,-1025.49271516,0.00016438,2]
[348814895,1736790683944,-558.12,0.00016438,2]
[348814896,1736790683956,-558.12,0.00016438,2]
[348814897,1736790683966,-558.12,0.00016438,2]
[348814898,1736790683978,-558.12,0.00016438,2]
[348814899,1736790683989,-558.12,0.00016438,2]
[348814900,1736790683998,-558.12,0.00016438,2]
[348814901,1736790684008,-558.12,0.00016438,2]
[348814902,1736790684019,-558.12,0.00016438,2]
[348814903,1736790684029,-558.12,0.00016438,2]
[348814904,1736790684040,-558.12,0.00016438,2]
[348814905,1736790684051,-558.12,0.00016438,2]
[348814906,1736790684062,-558.12,0.00016438,2]
[348814907,1736790684073,-558.12,0.00016438,2]
[348814908,1736790684083,-558.12,0.00016438,2]
[348814909,1736790684094,-558.12,0.00016438,2]
[348814910,1736790684105,-558.12,0.00016438,2]
[348814911,1736790684115,-558.12,0.00016438,2]
[348814912,1736790684125,-558.12,0.00016438,2]
[348814913,1736790684135,-558.12,0.00016438,2]
[348814914,1736790684146,-558.12,0.00016438,2]
[348814915,1736790684156,-558.12,0.00016438,2]
[348814916,1736790684166,-558.12,0.00016438,2]
[348814917,1736790684176,-558.12,0.00016438,2]
[348814918,1736790684186,-558.14070658,0.00016438,2]
[348814919,1736790684196,-402.58,0.00016438,2]
[348814920,1736790684206,-402.58,0.00016438,2]
[348814921,1736790684216,-402.58,0.00016438,2]
[348814922,1736790684226,-402.58,0.00016438,2]
[348814923,1736790684239,-402.58,0.00016438,2]
[348814924,1736790684250,-402.58,0.00016438,2]
[348814925,1736790684260,-402.58,0.00016438,2]
[348814926,1736790684269,-402.58,0.00016438,2]
[348814927,1736790684279,-402.58,0.00016438,2]
[348814928,1736790684289,-402.58,0.00016438,2]
[348814929,1736790684300,-402.58,0.00016438,2]
[348814930,1736790684310,-402.58,0.00016438,2]
[348814931,1736790684321,-402.58,0.00016438,2]
[348814932,1736790684330,-402.58,0.00016438,2]
[348814933,1736790684341,-402.58,0.00016438,2]
[348814934,1736790684350,-402.58,0.00016438,2]
[348814935,1736790684361,-402.58,0.00016438,2]
[348814936,1736790684372,-402.58,0.00016438,2]
[348814937,1736790684383,-402.58,0.00016438,2]
[348814938,1736790684394,-402.58,0.00016438,2]
[348814939,1736790684403,-402.58,0.00016438,2]
[348814940,1736790684413,-402.58,0.00016438,2]
[348814941,1736790684423,-402.58,0.00016438,2]
[348814942,1736790684433,-402.79538543,0.00016438,2]
[348814943,1736790684442,-300.0,0.00016438,2]
[348814944,1736790684452,-150.0,0.00016438,2]
[348814945,1736790684462,-5970.12,0.000165,2]
[348814946,1736790684472,-157.994781,0.00016502,2]
[348814947,1736790684484,-1500.0,0.00016522,2]
[348814948,1736790684494,-150.0,0.00016523,2]
[348814949,1736790684504,-2000.0,0.00016546,2]
[348814950,1736790684514,-1538.9251409,0.00016546,2]
[348814951,1736790684524,-773.38580731,0.0001657,2]
[348814952,1736790684535,-1602.18025137,0.0001657,2]
[348814953,1736790684545,-2834.109916,0.0001657,2]
[348814954,1736790684555,-629.60279523,0.0001657,2]
[348814955,1736790684564,-1459.72408035,0.0001657,2]
[348814956,1736790684573,-785.56797398,0.0001657,2]
[348814957,1736790684583,-1434.53654506,0.0001657,2]
[348814958,1736790684594,-169.79,0.00016574,2]
[348814959,1736790684604,-285.512409,0.000166,2]
[348814960,1736790684615,-285.512409,0.000166,2]